bitfinex/quotes_SOLUSD_20250622
["timestamp","ask_amount","ask_price","bid_price","bid_amount"]
[1750564247801,11.10391021,134.83,134.82,4.45037828]
[1750564248684,0.14216157,134.83,134.82,4.45037828]
[1750564248907,11.10391021,134.84,134.82,4.45037828]
[1750564249094,11.24607178,134.85,134.82,4.45037828]
[1750564249309,11.24607178,134.85,134.81,4.4507084]
[1750564249507,11.10391021,134.84,134.81,4.4507084]
[1750564250121,11.10391021,134.83,134.81,4.4507084]
[1750564251420,11.10391021,134.83,134.8,4.45103857]
[1750564251617,11.10391021,134.82,134.8,4.45103857]
[1750564251815,11.24607178,134.81,134.78,4.45169906]
[1750564252016,0.14216157,134.78,134.76,4.45235975]
[1750564252215,11.24607178,134.77,134.76,4.45235975]
[1750564252522,11.24607178,134.77,134.72,11.10391021]
[1750564252523,11.10391021,134.77,134.73,4.45335114]
[1750564252726,11.24607178,134.76,134.73,4.45335114]
[1750564253115,11.10391021,134.75,134.73,4.45335114]
[1750564253513,11.10391021,134.75,134.72,11.1333823]
[1750564253514,11.10391021,134.75,134.72,15.58706401]
[1750564254109,11.24607178,134.76,134.72,15.58706401]
[1750564254303,0.14216157,134.76,134.72,15.58706401]
[1750564254503,11.10391021,134.76,134.72,26.69097422]
[1750564254925,11.10391021,134.76,134.72,15.58706401]
[1750564255525,30.88,134.77,134.72,26.69097422]
[1750564255716,41.98391021,134.77,134.72,26.69097422]
[1750564257301,11.10391021,134.76,134.72,15.58706401]
[1750564260807,0.14216157,134.76,134.72,15.58706401]
[1750564261107,11.10391021,134.75,134.72,15.58706401]
[1750564261514,11.24607178,134.76,134.72,15.58706401]
[1750564265535,0.14216157,134.76,134.72,15.58706401]
[1750564265838,11.10391021,134.75,134.72,15.58706401]
[1750564266031,32.537,134.77,134.72,26.69097422]
[1750564266333,11.10391021,134.77,134.72,26.69097422]
[1750564266528,11.10391021,134.77,134.73,11.10391021]
[1750564266710,11.10391021,134.77,134.74,4.45302063]
[1750564266907,11.10391021,134.8,134.74,4.45302063]
[1750564267217,11.10391021,134.77,134.74,15.58557221]
[1750564268218,11.10391021,134.76,134.74,15.58557221]
[1750564268418,11.10391021,134.77,134.74,15.58557221]
[1750564268827,11.10391021,134.77,134.74,11.13255158]
[1750564270039,11.10391021,134.75,134.73,4.45335114]
[1750564270221,11.10391021,134.74,134.73,4.45335114]
[1750564270422,17.94391021,134.77,134.73,26.69063921]
[1750564270625,6.84,134.77,134.73,26.69063921]
[1750564271112,17.94391021,134.77,134.73,26.69063921]
[1750564271940,6.84,134.77,134.73,26.69063921]
[1750564272534,6.84,134.77,134.74,11.10391021]
[1750564274143,11.10391021,134.78,134.75,15.58441557]
[1750564275239,11.10391021,134.78,134.72,37.85629453]
[1750564275415,11.10391021,134.78,134.74,11.10391021]
[1750564276050,0.14216157,134.79,134.75,11.10391021]
[1750564277043,0.14216157,134.8,134.76,11.10391021]
[1750564277446,0.14216157,134.8,134.77,4.45202938]
[1750564277947,12.76091021,134.81,134.77,15.58210283]
[1750564278328,0.14216157,134.8,134.77,15.58210283]
[1750564278528,11.10391021,134.8,134.77,15.58210283]
[1750564279549,11.10391021,134.8,134.75,26.68832578]
[1750564282531,0.14216157,134.79,134.75,26.68832578]
[1750564282732,11.10391021,134.78,134.75,15.58441557]
[1750564282935,11.24607178,134.79,134.75,15.58441557]
[1750564283456,0.14216157,134.79,134.75,15.58441557]
[1750564283642,11.24607178,134.79,134.75,15.58441557]
[1750564285839,11.10391021,134.8,134.75,26.68832578]
[1750564286075,11.10391021,134.81,134.76,11.10391021]
[1750564287953,11.10391021,134.81,134.77,4.45202938]
[1750564288265,11.24607178,134.8,134.77,4.45202938]
[1750564288465,11.10391021,134.79,134.77,4.45202938]
[1750564290494,11.10391021,134.79,134.75,15.58441557]
[1750564290495,11.24607178,134.78,134.75,15.58441557]
[1750564292278,11.10391021,134.76,134.71,4.45401232]
[1750564292445,11.10391021,134.75,134.71,15.58904312]
[1750564292642,11.10391021,134.74,134.71,15.58904312]
[1750564292839,5.65754456,134.77,134.71,15.58904312]
[1750564293069,11.10391021,134.75,134.71,15.58904312]
[1750564296547,0.14216157,134.75,134.71,26.69295333]
[1750564297050,11.24607178,134.75,134.71,15.58904312]
[1750564300962,11.10391021,134.75,134.71,26.69295333]
[1750564301951,11.10391021,134.76,134.71,26.69295333]
[1750564302876,11.10391021,134.75,134.71,26.69295333]
[1750564303077,11.10391021,134.74,134.71,15.58904312]
[1750564303257,11.10391021,134.72,134.71,4.45401232]
[1750564303854,11.10391021,134.72,134.69,11.13662173]
[1750564305511,11.10391021,134.75,134.71,11.10391021]
[1750564305665,11.24607178,134.74,134.69,22.24053194]
[1750564305859,11.10391021,134.72,134.69,11.13662173]
[1750564307167,11.10391021,134.72,134.69,15.59129542]
[1750564307758,5.50804464,134.75,134.69,26.69520563]
[1750564307958,11.24607178,134.75,134.69,15.59129542]
[1750564308179,11.10391021,134.73,134.69,26.69520563]
[1750564308380,11.10391021,134.72,134.69,15.59129542]
[1750564308882,5.64717638,134.75,134.69,15.59129542]
[1750564308883,11.10391021,134.71,134.69,15.59129542]
[1750564309683,11.10391021,134.72,134.69,15.59129542]
[1750564312164,11.10391021,134.66,134.63,11.14088417]
[1750564312859,11.10391021,134.66,134.62,4.45699004]
[1750564313181,11.24607178,134.65,134.62,4.45699004]
[1750564313384,11.24607178,134.65,134.6,26.70496308]
[1750564313581,11.10391021,134.64,134.6,15.60105287]
[1750564313972,11.24607178,134.65,134.6,26.70496308]
[1750564314381,11.10391021,134.64,134.6,15.60105287]
[1750564315160,11.10391021,134.65,134.6,26.70496308]
[1750564316389,11.10391021,134.65,134.6,15.60105287]
[1750564316688,11.10391021,134.65,134.6,26.70496308]
[1750564319473,11.10391021,134.64,134.6,15.60105287]
[1750564320793,11.10391021,134.63,134.57,12.75373002]
[1750564320992,11.10391021,134.6,134.58,4.45831475]
[1750564321377,12.73331021,134.62,134.58,4.45831475]
[1750564321582,11.24607178,134.62,134.58,4.45831475]
[1750564322506,11.10391021,134.62,134.58,15.60410164]
[1750564322671,9.50027359,134.64,134.61,11.10391021]
[1750564322867,9.50027359,134.64,134.63,29.75355907]
[1750564323067,12.73331021,134.7,134.63,29.75355907]
[1750564323270,11.10391021,134.68,134.63,11.10391021]
[1750564324270,11.10391021,134.68,134.64,4.45632798]
[1750564324993,11.10391021,134.66,134.64,4.45632798]
[1750564326093,11.10391021,134.65,134.64,4.45632798]
[1750564326281,11.10391021,134.65,134.62,4.45699004]
[1750564326879,11.10391021,134.66,134.63,26.0]
[1750564328100,11.10391021,134.66,134.64,4.45632798]
[1750564330489,11.10391021,134.66,134.63,4.45665899]
[1750564330991,0.14216157,134.68,134.63,26.70221667]
[1750564330992,11.10391021,134.68,134.63,26.70221667]
[1750564331604,11.10391021,134.67,134.63,15.59830646]
[1750564333189,0.14216157,134.68,134.63,15.59830646]
[1750564333190,11.24607178,134.68,134.63,11.10391021]
[1750564335099,11.24607178,134.68,134.64,15.59714794]
[1750564336605,32.4694,134.7,134.64,11.10391021]
[1750564336782,32.4694,134.7,134.65,11.10391021]
[1750564336783,11.10391021,134.7,134.65,11.10391021]
[1750564337401,37.10391021,134.71,134.66,11.10391021]
[1750564339085,37.10391021,134.71,134.67,15.59367341]
[1750564340001,6.78,134.72,134.68,11.10391021]
[1750564340202,17.88391021,134.72,134.68,11.10391021]
[1750564340392,17.88391021,134.72,134.67,26.69758362]
[1750564341504,11.10391021,134.69,134.67,4.45533526]
[1750564342510,11.10391021,134.7,134.67,4.45533526]
[1750564343085,11.10391021,134.7,134.66,15.59478366]
[1750564343812,0.14216157,134.71,134.66,26.69869387]
[1750564344114,11.24607178,134.71,134.66,26.69869387]
[1750564344903,11.24607178,134.71,134.66,25.69869387]
[1750564345609,11.10391021,134.7,134.66,10.13911754]
[1750564346815,11.10391021,134.7,134.66,14.59478366]
[1750564348623,11.10391021,134.7,134.66,10.13911754]
[1750564350715,11.10391021,134.69,134.66,14.59478366]
[1750564352802,11.10391021,134.69,134.66,10.13911754]
[1750564357929,11.10391021,134.67,134.65,4.45599702]
[1750564358509,30.90216157,134.69,134.65,4.45599702]
[1750564358805,11.10391021,134.67,134.65,4.45599702]
[1750564359019,11.10391021,134.67,134.63,15.59765257]
[1750564364930,32.40486157,134.69,134.63,15.59765257]
[1750564365229,11.10391021,134.67,134.63,15.59765257]
[1750564365729,32.40486157,134.69,134.63,15.59765257]
[1750564365906,11.10391021,134.67,134.63,15.59765257]
[1750564367534,11.10391021,134.65,134.63,4.45665899]
[1750564367934,11.10391021,134.66,134.63,4.45665899]
[1750564369029,11.24607178,134.67,134.63,15.59830646]
[1750564369222,11.10391021,134.68,134.63,26.70221667]
[1750564369425,11.10391021,134.68,134.64,11.10391021]
[1750564370234,11.10391021,134.68,134.63,26.70221667]
[1750564372939,11.10391021,134.67,134.63,26.70221667]
[1750564373141,11.10391021,134.67,134.63,15.59830646]
[1750564373634,11.10391021,134.66,134.63,15.59830646]
[1750564374211,11.10391021,134.66,134.63,11.14164747]
[1750564377217,0.14216157,134.67,134.63,11.14164747]
[1750564377415,11.10391021,134.67,134.63,22.24555768]
[1750564378532,11.24607178,134.68,134.63,22.24555768]
[1750564379034,11.24607178,134.68,134.63,26.70221667]
[1750564379712,11.24607178,134.68,134.63,15.59830646]
[1750564379713,11.10391021,134.67,134.63,15.59830646]
[1750564380916,11.10391021,134.66,134.63,11.14164747]
[1750564381118,11.10391021,134.65,134.63,11.14164747]
[1750564381616,11.10391021,134.64,134.62,4.45699004]
[1750564381839,0.14216157,134.62,134.59,4.4579835]
[1750564382048,11.10391021,134.6,134.59,4.4579835]
[1750564382742,11.10391021,134.61,134.58,11.14571422]
[1750564383120,26.0,134.64,134.59,11.10391021]
[1750564383351,11.24607178,134.65,134.6,11.10391021]
[1750564383523,11.10391021,134.65,134.6,11.10391021]
[1750564385136,11.10391021,134.65,134.61,15.60062401]
[1750564385446,6.76,134.66,134.62,29.75355907]
[1750564386044,17.86391021,134.66,134.62,29.75355907]
[1750564387351,11.10391021,134.66,134.63,4.45665899]
[1750564387552,11.10391021,134.65,134.63,4.45665899]
[1750564389343,11.10391021,134.65,134.62,15.59946515]
[1750564389545,11.10391021,134.66,134.62,15.59946515]
[1750564395073,11.10391021,134.63,134.59,4.4579835]
[1750564395270,11.10391021,134.6,134.59,4.4579835]
[1750564395472,11.10391021,134.62,134.59,4.4579835]
[1750564395657,41.86391021,134.62,134.59,4.4579835]
[1750564395859,11.10391021,134.6,134.59,4.4579835]
[1750564396172,11.10391021,134.6,134.57,4.45864605]
[1750564396475,11.10391021,134.58,134.57,4.45864605]
[1750564396889,11.10391021,134.58,134.55,4.4593088]
[1750564397069,11.10391021,134.58,134.51,1.5463]
[1750564397070,11.10391021,134.56,134.52,15.61104522]
[1750564399554,11.10391021,134.56,134.52,26.71495543]
[1750564399970,41.86391021,134.57,134.52,26.71495543]
[1750564400483,11.10391021,134.56,134.52,15.61104522]
[1750564401280,11.10391021,134.56,134.52,26.71495543]
[1750564402365,11.10391021,134.58,134.53,29.75355907]
[1750564402690,11.10391021,134.58,134.54,11.10391021]
[1750564403087,11.10391021,134.58,134.53,29.75355907]
[1750564403489,11.10391021,134.58,134.54,11.10391021]
[1750564404189,11.10391021,134.58,134.55,15.60758081]
[1750564405479,11.10391021,134.59,134.55,15.60758081]
[1750564405682,11.10391021,134.62,134.57,11.10391021]
[1750564406600,11.10391021,134.62,134.56,18.64964886]
[1750564406889,11.10391021,134.62,134.57,11.10391021]
[1750564407966,11.10391021,134.62,134.58,15.60410164]
[1750564408656,11.10391021,134.61,134.58,15.60410164]
[1750564409201,11.10391021,134.61,134.58,11.14578689]
[1750564409577,11.10391021,134.62,134.58,11.14578689]
[1750564410297,11.10391021,134.62,134.58,15.60410164]
[1750564416890,11.10391021,134.6,134.58,15.60410164]
[1750564417494,11.10391021,134.61,134.58,15.60410164]
[1750564418916,11.10391021,134.61,134.58,11.14578689]
[1750564419718,11.10391021,134.6,134.58,11.14578689]
[1750564420423,11.10391021,134.59,134.58,11.14578689]
[1750564420717,11.10391021,134.59,134.57,4.45864605]
[1750564421226,11.10391021,134.59,134.56,11.147365]
[1750564423127,11.10391021,134.59,134.56,15.6063424]
[1750564423322,30.74,134.6,134.56,15.6063424]
[1750564423614,11.10391021,134.6,134.56,26.71025261]
[1750564423816,41.84391021,134.6,134.56,15.6063424]
[1750564423984,41.84391021,134.6,134.56,26.71025261]
[1750564425020,41.84391021,134.6,134.56,11.147365]
[1750564425397,30.74,134.6,134.56,22.25127521]
[1750564427317,11.10391021,134.61,134.56,26.71025261]
[1750564427824,11.10391021,134.61,134.57,11.10391021]
[1750564428925,87.6,134.64,134.58,18.64964886]
[1750564429228,14.4482,134.66,134.6,29.75355907]
[1750564429451,11.10391021,134.65,134.61,15.60062401]
[1750564429816,11.10391021,134.64,134.61,15.60062401]
[1750564430224,11.24607178,134.65,134.61,41.60062401]
[1750564430436,41.84391021,134.65,134.61,52.70453422]
[1750564430650,30.74,134.65,134.61,52.70453422]
[1750564430816,17.84391021,134.66,134.61,26.70453422]
[1750564431233,11.10391021,134.65,134.61,26.70453422]
[1750564432055,48.58391021,134.66,134.61,26.70453422]
[1750564432557,11.10391021,134.65,134.61,15.60062401]
[1750564434161,48.58391021,134.66,134.61,22.24721308]
[1750564435120,17.84391021,134.66,134.61,22.24721308]
[1750564435360,17.13931021,134.69,134.63,29.75355907]
[1750564435528,6.74,134.69,134.65,11.10391021]
[1750564435860,16.59576431,134.74,134.68,11.10391021]
[1750564436055,63.13936141,134.75,134.7,11.10391021]
[1750564436365,26.90684834,134.75,134.71,15.58904312]
[1750564436517,9.06293813,134.75,134.71,26.69295333]
[1750564436723,9.06293813,134.75,134.72,11.10391021]
[1750564436939,9.06293813,134.75,134.73,11.10391021]
[1750564437143,9.06293813,134.75,134.74,18.64964886]
[1750564437333,89.98391021,134.79,134.74,29.75355907]
[1750564437530,11.10391021,134.78,134.73,11.10391021]
[1750564438239,11.10391021,134.78,134.74,15.58557221]
[1750564440547,78.86,134.79,134.74,15.58557221]
[1750564440548,7.6917,134.82,134.76,11.10391021]
[1750564440856,16.93328899,134.86,134.79,11.10391021]
[1750564440857,11.10391021,134.84,134.79,11.10391021]
[1750564441057,6.74,134.85,134.81,11.10391021]
[1750564441257,11.10391021,134.84,134.79,26.0]
[1750564441430,17.84391021,134.85,134.8,11.10391021]
[1750564441631,6.74,134.85,134.8,11.10391021]
[1750564441832,6.74,134.85,134.78,37.10391021]
[1750564441833,11.10391021,134.83,134.78,37.10391021]
[1750564442252,11.10391021,134.84,134.79,29.75355907]
[1750564442562,11.10391021,134.84,134.8,4.45103857]
[1750564442966,17.84391021,134.85,134.8,26.68254521]
[1750564443172,17.84391021,134.85,134.81,11.10391021]
[1750564443459,17.84391021,134.85,134.8,15.578635]
[1750564443460,17.84391021,134.85,134.8,26.68254521]
[1750564443662,0.14216157,134.84,134.8,4.45103857]
[1750564443966,11.10391021,134.81,134.8,4.45103857]
[1750564444269,41.82391021,134.82,134.8,4.45103857]
[1750564444566,41.82391021,134.82,134.78,29.75355907]
[1750564444767,30.72,134.82,134.78,29.75355907]
[1750564444949,41.82391021,134.82,134.77,22.23333134]
[1750564445267,11.10391021,134.79,134.76,4.45235975]
[1750564446141,11.24607178,134.8,134.76,4.45235975]
[1750564446348,11.10391021,134.79,134.76,4.45235975]
[1750564447061,11.10391021,134.79,134.75,4.45269016]
[1750564448637,11.10391021,134.79,134.75,15.58441557]
[1750564451063,11.10391021,134.8,134.76,11.10391021]
[1750564451265,11.10391021,134.8,134.75,26.68832578]
[1750564451442,11.10391021,134.8,134.76,11.10391021]
[1750564451976,41.82391021,134.82,134.77,11.10391021]
[1750564452966,30.72,134.82,134.78,11.10391021]
[1750564453974,30.72,134.82,134.79,4.45136879]
[1750564454682,30.72,134.82,134.79,15.57979077]
[1750564454990,41.82391021,134.82,134.79,15.57979077]
[1750564455281,11.10391021,134.83,134.79,15.57979077]
[1750564455888,11.10391021,134.81,134.78,4.45169906]
[1750564458284,11.10391021,134.79,134.78,4.45169906]
[1750564458477,11.10391021,134.79,134.74,18.64964886]
[1750564458478,11.10391021,134.79,134.74,11.13255031]
[1750564458668,11.10391021,134.78,134.74,11.13255031]
[1750564459985,11.10391021,134.78,134.74,26.68948115]
[1750564460293,11.10391021,134.78,134.74,15.58557094]
[1750564460476,11.10391021,134.77,134.74,15.58557094]
[1750564461370,11.10391021,134.76,134.74,4.45302063]
[1750564461569,11.10391021,134.76,134.71,11.10391021]
[1750564461570,11.10391021,134.75,134.71,4.45401232]
[1750564461766,11.10391021,134.73,134.71,4.45401232]
[1750564462664,11.10391021,134.72,134.71,4.45401232]
[1750564463463,11.10391021,134.72,134.69,15.59101055]
[1750564463670,0.14216157,134.75,134.69,15.59101055]
[1750564463671,11.10391021,134.74,134.69,26.69492076]
[1750564463970,11.10391021,134.74,134.7,11.10391021]
[1750564464184,11.10391021,134.74,134.7,29.75355907]
[1750564465091,11.10391021,134.74,134.71,15.58904312]
[1750564465776,11.10391021,134.73,134.71,4.45401232]
[1750564466792,11.10391021,134.72,134.69,15.5913418]
[1750564467197,11.10391021,134.7,134.69,4.45467369]
[1750564467998,11.10391021,134.7,134.67,4.45533526]
[1750564468171,0.14216157,134.71,134.67,15.59367341]
[1750564468376,11.24607178,134.71,134.67,15.59367341]
[1750564468887,11.10391021,134.71,134.67,15.59367341]
[1750564469202,11.10391021,134.71,134.67,26.69758362]
[1750564470592,11.10391021,134.73,134.69,11.10391021]
[1750564471092,11.10391021,134.74,134.7,11.10391021]
[1750564471299,11.10391021,134.74,134.69,11.10391021]
[1750564471692,11.10391021,134.73,134.69,11.10391021]
[1750564472002,0.14216157,134.75,134.67,74.97425993]
[1750564472306,11.10391021,134.72,134.67,74.97425993]
[1750564473211,11.10391021,134.72,134.67,63.87034972]
[1750564473403,11.10391021,134.72,134.69,4.45467369]
[1750564473708,11.10391021,134.7,134.69,4.45467369]
[1750564474690,11.10391021,134.71,134.69,4.45467369]
[1750564475296,11.10391021,134.72,134.69,4.45467369]
[1750564475493,11.10391021,134.72,134.68,15.59251558]
[1750564475696,11.10391021,134.73,134.68,26.69642579]
[1750564481114,11.10391021,134.72,134.68,26.69642579]
[1750564481917,11.10391021,134.72,134.68,15.59251558]
[1750564483415,36.30831252,134.75,134.68,15.59251558]
[1750564483616,11.10391021,134.72,134.68,26.69642579]
[1750564483923,11.10391021,134.72,134.68,15.59251558]
[1750564484218,11.10391021,134.71,134.68,15.59251558]
[1750564484418,11.24607178,134.71,134.68,15.59251558]
[1750564485011,11.24607178,134.69,134.66,4.45566612]
[1750564485329,11.10391021,134.68,134.66,4.45566612]
[1750564485493,11.10391021,134.68,134.65,11.13938908]
[1750564486524,11.10391021,134.67,134.65,11.13938908]
[1750564486704,11.10391021,134.66,134.64,4.45632798]
[1750564486894,11.10391021,134.65,134.64,4.45632798]
[1750564487696,11.10391021,134.65,134.62,15.59867773]
[1750564489023,0.14216157,134.69,134.62,15.59867773]
[1750564489227,11.10391021,134.65,134.62,15.59867773]
[1750564489799,11.10391021,134.65,134.62,11.14168769]
[1750564490210,0.14216157,134.69,134.63,26.0]
[1750564490520,120.32,134.7,134.63,37.10391021]
[1750564490521,11.10391021,134.68,134.63,37.10391021]
[1750564491199,11.10391021,134.68,134.63,26.0]
[1750564491394,11.10391021,134.68,134.63,37.10391021]
[1750564492013,11.10391021,134.68,134.64,15.59714794]
[1750564493734,11.10391021,134.68,134.67,26.0]
[1750564495324,11.10391021,134.68,134.67,30.45533526]
[1750564495932,6.72,134.7,134.69,26.0]
[1750564496147,17.82391021,134.7,134.69,26.0]
[1750564497337,17.82391021,134.7,134.69,30.45467369]
[1750564499639,11.10391021,134.73,134.69,15.59135792]
[1750564499816,11.10391021,134.74,134.69,26.69526813]
[1750564500010,11.10391021,134.74,134.69,52.69526813]
[1750564500345,17.82391021,134.75,134.7,11.10391021]
[1750564500768,6.72,134.75,134.71,37.10391021]
[1750564501731,6.72,134.75,134.72,15.58788598]
[1750564501936,11.24607178,134.73,134.69,4.45467369]
[1750564502146,0.14216157,134.73,134.69,4.45467369]
[1750564502310,11.10391021,134.72,134.69,15.59135792]
[1750564502511,11.10391021,134.71,134.69,15.59135792]
[1750564502912,11.24607178,134.7,134.67,4.45533526]
[1750564503132,11.10391021,134.69,134.67,4.45533526]
[1750564503611,11.24607178,134.7,134.67,4.45533526]
[1750564504240,11.24607178,134.7,134.66,15.59402245]
[1750564504430,11.10391021,134.69,134.66,15.59402245]
[1750564508840,11.10391021,134.69,134.66,11.13835633]
[1750564510363,11.10391021,134.69,134.66,15.59402245]
[1750564513660,11.10391021,134.68,134.66,4.45566612]
[1750564513823,11.24607178,134.67,134.66,4.45566612]
[1750564515151,0.14216157,134.66,134.65,4.45599702]
[1750564515323,11.24607178,134.66,134.65,4.45599702]
[1750564516122,1.5113,134.72,134.65,52.6998998]
[1750564516447,11.10391021,134.71,134.66,11.10391021]
[1750564516631,0.14216157,134.7,134.66,11.10391021]
[1750564517056,0.14216157,134.7,134.67,15.59367341]
[1750564517251,11.10391021,134.72,134.67,26.69758362]
[1750564517457,11.10391021,134.71,134.67,26.69758362]
[1750564517655,11.10391021,134.71,134.67,15.59367341]
[1750564518432,11.10391021,134.71,134.67,26.69758362]
[1750564518834,11.10391021,134.71,134.67,15.59367341]
[1750564519243,0.14216157,134.7,134.67,15.59367341]
[1750564519442,11.24607178,134.7,134.67,15.59367341]
[1750564520561,0.14216157,134.7,134.67,15.59367341]
[1750564521661,0.14216157,134.7,134.67,22.24224836]
[1750564522662,0.14216157,134.7,134.67,11.13833815]
[1750564524860,0.14216157,134.7,134.67,15.59367341]
[1750564525258,0.14216157,134.71,134.67,15.59367341]
[1750564525557,11.24607178,134.71,134.67,15.59367341]
[1750564525953,11.10391021,134.69,134.67,4.45533526]
[1750564526150,11.24607178,134.68,134.67,4.45533526]
[1750564527130,11.24607178,134.68,134.62,34.24911401]
[1750564527335,11.24607178,134.68,134.63,11.10391021]
[1750564528355,11.24607178,134.68,134.64,15.59714794]
[1750564528540,11.10391021,134.67,134.64,15.59714794]
[1750564528743,0.14216157,134.66,134.64,15.59714794]
[1750564528936,11.10391021,134.67,134.61,49.88960574]
[1750564528937,11.24607178,134.65,134.61,4.45732114]
[1750564529167,17.42021021,134.62,134.54,3.68209157]
[1750564529339,0.14216157,134.58,134.53,1.5865]
[1750564529537,0.14216157,134.6,134.54,11.10391021]
[1750564529848,0.14216157,134.62,134.58,11.10391021]
[1750564530158,11.10391021,134.64,134.6,11.10391021]
[1750564530465,24.14021021,134.66,134.61,15.56123135]
[1750564530639,11.10391021,134.65,134.61,15.60062401]
[1750564530966,13.0363,134.66,134.54,22.29820127]
[1750564530967,0.14216157,134.61,134.54,22.29820127]
[1750564531268,0.14216157,134.6,134.55,4.4593088]
[1750564531438,0.14216157,134.58,134.55,4.4593088]
[1750564532163,0.14216157,134.58,134.55,15.6069747]
[1750564532543,0.14216157,134.58,134.55,4.4593088]
[1750564532746,11.10391021,134.56,134.55,4.4593088]
[1750564534155,11.10391021,134.57,134.53,4.45997175]
[1750564534359,0.14216157,134.56,134.53,4.45997175]
[1750564534866,11.10391021,134.55,134.53,15.60990113]
[1750564536673,11.10391021,134.55,134.53,11.14992938]
[1750564538243,11.10391021,134.55,134.52,4.4603033]
[1750564538443,0.14216157,134.53,134.52,4.4603033]
[1750564538867,10.44234218,134.53,134.5,4.46096654]
[1750564539072,11.10391021,134.52,134.5,4.46096654]
[1750564539258,11.24607178,134.51,134.5,4.46096654]
[1750564539567,21.666042,134.51,134.48,4.46162998]
[1750564540069,10.09913118,134.5,134.48,15.61570493]
[1750564540377,10.09913118,134.5,134.48,26.71961514]
[1750564540953,10.09913118,134.5,134.49,11.10391021]
[1750564541859,10.09913118,134.5,134.49,4.46129823]
[1750564542975,19.06721021,134.59,134.53,18.64964886]
[1750564543174,7.9633,134.59,134.53,29.75355907]
[1750564543471,0.14216157,134.58,134.54,11.10391021]
[1750564543980,0.14216157,134.58,134.55,15.60758081]
[1750564544165,28.52993197,134.59,134.55,15.60758081]
[1750564544676,0.14216157,134.58,134.55,15.60758081]
[1750564545354,9.46272176,134.59,134.56,18.57286389]
[1750564545557,9.46272176,134.59,134.57,18.57286389]
[1750564545883,9.46272176,134.59,134.58,4.45831475]
[1750564546087,9.46272176,134.59,134.58,23.03117864]
[1750564546462,9.46272176,134.59,134.58,41.6808275]
[1750564546873,9.46272176,134.59,134.58,67.6808275]
[1750564547878,9.46272176,134.59,134.56,18.64964886]
[1750564548076,9.46272176,134.59,134.55,34.1804447]
[1750564550660,9.46272176,134.59,134.57,4.45864605]
[1750564553261,9.46272176,134.59,134.57,23.03150994]
[1750564553461,9.46272176,134.59,134.57,4.45864605]
[1750564554578,18.71502546,134.58,134.57,4.45864605]
[1750564554777,18.71502546,134.58,134.54,4.45964025]
[1750564554964,0.14216157,134.54,134.52,11.15027134]
[1750564555283,18.71502546,134.54,134.52,11.15027134]
[1750564558088,0.14216157,134.58,134.52,11.15027134]
[1750564558260,18.57286389,134.55,134.52,11.15027134]
[1750564558790,18.57286389,134.54,134.5,15.61338289]
[1750564559586,0.14216157,134.53,134.5,15.61338289]
[1750564562289,18.57286389,134.54,134.5,34.18624678]
[1750564562591,0.14216157,134.54,134.5,34.18624678]
[1750564563264,18.57286389,134.55,134.5,34.18624678]
[1750564563881,0.14216157,134.57,134.5,15.61338289]
[1750564564193,18.57286389,134.54,134.5,15.61338289]
[1750564564888,18.71502546,134.53,134.5,15.61338289]
[1750564565070,18.57286389,134.52,134.5,4.46096654]
[1750564565270,18.71502546,134.51,134.5,4.46096654]
[1750564565587,0.14216157,134.51,134.5,4.46096654]
[1750564567075,7.8728,134.54,134.48,15.61570493]
[1750564567391,18.57286389,134.54,134.49,18.57286389]
[1750564568086,18.57286389,134.53,134.49,18.57286389]
[1750564568481,18.71502546,134.54,134.49,18.57286389]
[1750564568980,18.71502546,134.54,134.5,4.46096654]
[1750564569195,18.57286389,134.53,134.5,4.46096654]
[1750564569575,18.57286389,134.53,134.5,15.61338289]
[1750564570386,18.57286389,134.53,134.5,15.11338289]
[1750564570694,18.71502546,134.54,134.5,15.11338289]
[1750564570876,7.34,134.55,134.51,18.57286389]
[1750564571079,7.34,134.55,134.52,4.4603033]
[1750564572491,25.91286389,134.55,134.52,4.4603033]
[1750564573875,25.91286389,134.55,134.51,15.61222213]
[1750564575097,18.71502546,134.54,134.51,15.61222213]
[1750564575702,18.57286389,134.53,134.51,4.46063489]
[1750564577377,18.57286389,134.53,134.49,15.6144608]
[1750564578174,0.14216157,134.51,134.49,4.46129823]
[1750564579408,0.14216157,134.51,134.48,4.46162998]
[1750564580111,11.29769858,134.51,134.48,4.46162998]
[1750564580490,31.4,134.54,134.48,26.77124194]
[1750564580491,11.29769858,134.53,134.48,26.77124194]
[1750564582203,11.15553701,134.52,134.48,26.77124194]
[1750564582408,11.15553701,134.52,134.48,15.61570493]
[1750564583004,0.14216157,134.51,134.48,15.61570493]
[1750564583398,11.29769858,134.51,134.48,15.61570493]
[1750564584219,0.14216157,134.51,134.48,15.61570493]
[1750564584518,11.29769858,134.51,134.48,15.61570493]
[1750564584715,0.14216157,134.51,134.48,15.61570493]
[1750564585501,0.14216157,134.51,134.48,4.46162998]
[1750564585893,11.29769858,134.51,134.48,4.46162998]
[1750564586609,11.29769858,134.51,134.47,4.46196177]
[1750564587001,11.29769858,134.51,134.47,15.6168662]
[1750564588992,0.14216157,134.5,134.47,26.77240321]
[1750564590720,0.14216157,134.5,134.47,15.6168662]